Workbook

Sheet Лист1
B2: qwe
B4: asfd asjdh aksdhksd aksjdh a
B7: qwe qweqww qw eqw eqw e
B10: akjsdh aksjd fsdlfk jsdlkf jsldjkf sdlkfj
G11: asdasdasasdasdasd
B13: Qwf
B14: QwfrfQty uweior
B15: QwfwfQ
B16: qwe
B18: jF2jfhQ
B20: jF
B22: QwfwfQ
B24: 2Qwfj2Qwfj2Qwfj
B26: 2Qwfj2Qwfj2Qwfj
B28: 2Qwfj
B29: 2Qwfj2Qwfj
B30: 2Qwfj2Qwfj
B32: 11QwfFj
B33: 11QwfFj01QwfFj01QwfFj
B34: 7,5QwfFj
B35: 7,5QwfFj11QwfFj11QwfFj
B36: 13QwfFj
B37: 13QwfFj11QwfFj11QwfFj
B38: 14QwfFj
B39: 14QwfFj11QwfFj11QwfFj
B40: 16QwfFj
B41: 16QwfFj11QwfFj11QwfFj
B42: 17QwfFj
B43: 17QwfFj11QwfFj11QwfFj
B44: 18QwfFj
B45: 18QwfFj11QwfFj11QwfFj
B46: 22QwfFj
B47: 22QwfFj11QwfFj11QwfFj
B48: 24QwfFj
B49: 24QwfFj11QwfFj11QwfFj
B50: 20QwfFj
B51: 20QwfFj01QwfFj01QwfFj
B52: 26QwfFj
B53: 26QwfFj01QwfFj01QwfFj
B54: 36QwfFj
B55: 36QwfFj01QwfFj01QwfFj
B56: 401QwfFj
B57: 401QwfFj01QwfFj01QwfFj
B61: qweasdasd
F65: 1.00
F66: (1.00)
F67: 1.00
F68: (1.00)
F69: 1.00
F70: 1.000

Sheet Лист2
A1: f | B1: l | E1: a | H1: d | K1: h | N1: f/2 | O1: a/2 | Q1: f2/3 | R1: a2/3 | T1: as2/3 | V1: ds
A2: 11 | B2: =A2*1.275 -> 14.025 | C2: =K2*72/120 -> 14.4 | E2: =A2*120/72 -> 18.33333333 | F2: 18 | G2: =K2-J2 -> 18 | H2: =(B2-A2)*120/72 -> 5.041666667 | I2: 6 | J2: =ROUNDUP(ROUNDUP(E2,0)*0.275,0) -> 6 | K2: =ROUNDUP(B2*120/72,0) -> 24 | L2: 24 | M2: =ROUND(E2,0)+J2 -> 24 | N2: =A2/2 -> 5.5 | O2: =N2*120/72 -> 9.166666667 | P2: 9 | Q2: =A2*2/3 -> 7.333333333 | R2: =Q2*120/72 -> 12.22222222 | S2: 12 | T2: =A2*2*120/3/72 -> 12.22222222 | U2: 12 | V2: =A2*2*0.275*120/3/72 -> 3.361111111 | W2: 4
A3: 7.5 | B3: =A3*1.275 -> 9.5625 | C3: =K3*72/120 -> 9.6 | E3: =A3*120/72 -> 12.5 | F3: 18 | G3: =K3-J3 -> 12 | H3: =(B3-A3)*120/72 -> 3.4375 | I3: 6 | J3: =ROUNDUP(ROUNDUP(E3,0)*0.275,0) -> 4 | K3: =ROUNDUP(B3*120/72,0) -> 16 | L3: 24 | M3: =ROUND(E3,0)+J3 -> 17 | N3: =A3/2 -> 3.75 | O3: =N3*120/72 -> 6.25 | P3: 6 | Q3: =A3*2/3 -> 5 | R3: =Q3*120/72 -> 8.333333333 | S3: 11 | T3: =A3*2*120/3/72 -> 8.333333333 | U3: 8 | V3: =A3*2*0.275*120/3/72 -> 2.291666667 | W3: 5
A4: 13 | B4: 16.575 | C4: 16.8 | E4: 21.66666667 | F4: 22 | G4: 21 | H4: 5.958333333 | I4: 7 | J4: 7 | K4: 28 | L4: 29 | M4: 29 | N4: 6.5 | O4: 10.83333333 | P4: 11 | Q4: 8.666666667 | R4: 14.44444444 | S4: 15 | T4: 14.44444444 | U4: 15 | V4: 3.972222222 | W4: 5
A5: 14 | B5: 17.85 | C5: 18 | E5: 23.33333333 | F5: 23 | G5: 23 | H5: 6.416666667 | I5: 7 | J5: 7 | K5: 30 | L5: 30 | M5: 30 | N5: 7 | O5: 11.66666667 | P5: 11 | Q5: 9.333333333 | R5: 15.55555556 | S5: 15 | T5: 15.55555556 | U5: 15 | V5: 4.277777778 | W5: 5
A6: 16 | B6: 20.4 | C6: 20.4 | E6: 26.66666667 | F6: 27 | G6: 26 | H6: 7.333333333 | I6: 8 | J6: 8 | K6: 34 | L6: 35 | M6: 35 | N6: 8 | O6: 13.33333333 | P6: 13 | Q6: 10.66666667 | R6: 17.77777778 | S6: 18 | T6: 17.77777778 | U6: 18 | V6: 4.888888889 | W6: 6
A7: 17 | B7: 21.675 | C7: 22.2 | E7: 28.33333333 | F7: 28 | G7: 29 | H7: 7.791666667 | I7: 9 | J7: 8 | K7: 37 | L7: 37 | M7: 36 | N7: 8.5 | O7: 14.16666667 | P7: 14 | Q7: 11.33333333 | R7: 18.88888889 | S7: 19 | T7: 18.88888889 | U7: 19 | V7: 5.194444444 | W7: 6
A8: 18 | B8: 22.95 | C8: 23.4 | E8: 30 | F8: 30 | G8: 30 | H8: 8.25 | I8: 9 | J8: 9 | K8: 39 | L8: 39 | M8: 39 | N8: 9 | O8: 15 | P8: 15 | Q8: 12 | R8: 20 | S8: 20 | T8: 20 | U8: 21 | V8: 5.5 | W8: 6
A9: 20 | B9: 25.5 | C9: 25.8 | E9: 33.33333333 | F9: 33 | G9: 33 | H9: 9.166666667 | I9: 10 | J9: 10 | K9: 43 | L9: 43 | M9: 43 | N9: 10 | O9: 16.66666667 | P9: 16 | Q9: 13.33333333 | R9: 22.22222222 | S9: 23 | T9: 22.22222222 | U9: 22 | V9: 6.111111111 | W9: 7
A10: 22 | B10: 28.05 | C10: 28.2 | E10: 36.66666667 | F10: 37 | G10: 36 | H10: 10.08333333 | I10: 11 | J10: 11 | K10: 47 | L10: 48 | M10: 48 | N10: 11 | O10: 18.33333333 | P10: 18 | Q10: 14.66666667 | R10: 24.44444444 | S10: 26 | T10: 24.44444444 | U10: 25 | V10: 6.722222222 | W10: 8
A11: 24 | B11: 30.6 | C11: 30.6 | E11: 40 | F11: 40 | G11: 40 | H11: 11 | I11: 12 | J11: 11 | K11: 51 | L11: 52 | M11: 51 | N11: 12 | O11: 20 | P11: 20 | Q11: 16 | R11: 26.66666667 | S11: 28 | T11: 26.66666667 | U11: 28 | V11: 7.333333333 | W11: 8
A12: 26 | B12: 33.15 | C12: 33.6 | E12: 43.33333333 | F12: 43 | G12: 43 | H12: 11.91666667 | I12: 13 | J12: 13 | K12: 56 | L12: 56 | M12: 56 | N12: 13 | O12: 21.66666667 | P12: 21 | Q12: 17.33333333 | R12: 28.88888889 | S12: 30 | T12: 28.88888889 | U12: 29 | V12: 7.944444444 | W12: 9
A13: 36 | B13: 45.9 | C13: 46.2 | E13: 60 | F13: 61 | G13: 60 | H13: 16.5 | I13: 16 | J13: 17 | K13: 77 | L13: 77 | M13: 77 | N13: 18 | O13: 30 | P13: 30 | Q13: 24 | R13: 40 | S13: 41 | T13: 40 | U13: 42 | V13: 11 | W13: 12
A14: 40 | B14: 51 | C14: 51 | E14: 66.66666667 | F14: 67 | G14: 66 | H14: 18.33333333 | I14: 19 | J14: 19 | K14: 85 | L14: 86 | M14: 86 | N14: 20 | O14: 33.33333333 | P14: 33 | Q14: 26.66666667 | R14: 44.44444444 | S14: 46 | T14: 44.44444444 | U14: 46 | V14: 12.22222222 | W14: 13

Sheet Лист3
